[Event "EIWCC 2017"]
[Site "Riga"]
[Date "2017.04.17"]
[Round "7"]
[White "Gvetadze, Sofio"]
[Black "Stetsko, Lanita"]
[Result "1/2-1/2"]
[ECO "A05"]
[WhiteElo "2292"]
[BlackElo "2226"]
[Annotator "ChessBase"]
[PlyCount "211"]
[EventDate "2017.??.??"]
[EventType "swiss"]
[EventCountry "LAT"]
[SourceTitle "playchess.com"]
[Source "ChessBase"]
[SourceQuality "1"]
[TimeControl "40/5400+30:1800+30"]

1. Nf3 {[%emt 0:00:00]} Nf6 {[%emt 0:01:25]} 2. g3 {[%emt 0:00:00]} d5 {[%emt 0:04:31]} 3. Bg2 {[%emt 0:00:21]} c6 {[%emt 0:00:29]} 4. O-O {[%emt 0:00:33]} Bf5 {[%emt 0:01:15]} 5. d4 {[%emt 0:01:20]} e6 {[%emt 0:01:23]} 6. c4 {[%emt 0:00:14]} Be7 {[%emt 0:07:13]} 7. Nc3 {[%emt 0:00:35]} O-O {[%emt 0:01:31]} 8. Qb3 {[%emt 0:01:53]} Qb6 {[%emt 0:09:23]} 9. c5 {[%emt 0:00:55]} Qxb3 {[%emt 0:16:33]} 10. axb3 {[%emt 0:00:05]} Na6 {[%emt 0:04:11]} 11. Bf4 {[%emt 0:07:19]} Nd7 {[%emt 0:04:21]} 12. h3 {[%emt 0:02:53]} f6 {[%emt 0:00:28]} 13. g4 {[%emt 0:00:23]} Bc2 {[%emt 0:01:21]} 14. Rfc1 {[%emt 0:00:53]} Bg6 {[%emt 0:07:47]} 15. Bd2 {[%emt 0:02:41]} e5 {[%emt 0:01:42]} 16. e3 {[%emt 0:00:07]} f5 {[%emt 0:05:54]} 17. Ra4 {[%emt 0:02:49]} fxg4 {[%emt 0:02:12]} 18. hxg4 {[%emt 0:00:04]} e4 {[%emt 0:01:07]} 19. Nh2 {[%emt 0:01:03]} Nc7 {[%emt 0:07:08]} 20. Ne2 {[%emt 0:01:45]} h6 {[%emt 0:01:06]} 21. Nf4 {[%emt 0:01:33]} Bh7 {[%emt 0:00:07]} 22. Bf1 {[%emt 0:07:21]} g5 {[%emt 0:01:27]} 23. Nh5 {[%emt 0:00:24]} Ne6 {[%emt 0:01:29]} 24. Ng3 {[%emt 0:00:50]} Rf7 {[%emt 0:01:39]} 25. b4 {[%emt 0:00:59]} Nc7 {[%emt 0:02:58]} 26. Be2 {[%emt 0:10:01]} a6 {[%emt 0:00:17]} 27. Nhf1 {[%emt 0:00:21]} Nf8 {[%emt 0:01:23]} 28. Be1 {[%emt 0:00:44]} Nfe6 {[%emt 0:02:32]} 29. Nd2 {[%emt 0:03:45]} Raf8 {[%emt 0:00:05]} 30. Nb3 {[%emt 0:00:21]} Ne8 {[%emt 0:03:49]} 31. Na5 {[%emt 0:04:38]} Bd8 {[%emt 0:00:22]} 32. Nxc6 {[%emt 0:00:55]} bxc6 {[%emt 0:00:04]} 33. Rxa6 {[%emt 0:00:04]} Nf4 34. exf4 {[%emt 0:09:50]} gxf4 {[%emt 0:03:42]} 35. Rxc6 {[%emt 0:00:57]} fxg3 {[%emt 0:00:23]} 36. fxg3 {[%emt 0:00:02]} Bg5 {[%emt 0:00:26]} 37. Rd1 {[%emt 0:00:28]} Nf6 {[%emt 0:02:25]} 38. Rd6 {[%emt 0:04:05]} e3 {[%emt 0:01:47]} 39. c6 {[%emt 0:00:43]} Be4 {[%emt 0:00:59]} 40. Re6 {[%emt 0:00:00]} Nxg4 {[%emt 0:01:32]} 41. Rxe4 {[%emt 0:09:34]} Nf2 {[%emt 0:02:24]} 42. Re5 {[%emt 0:09:37]} Nxd1 {[%emt 0:01:55]} 43. Rxd5 {[%emt 0:00:02]} Nxb2 {[%emt 0:02:58]} 44. Ra5 {[%emt 0:10:46]} Bf6 {[%emt 0:09:11]} 45. Bc3 {[%emt 0:01:26]} Bd8 {[%emt 0:03:48]} 46. Ra2 {[%emt 0:01:37]} Nd1 {[%emt 0:00:23]} 47. Be1 {[%emt 0:01:08]} Bb6 {[%emt 0:02:23]} 48. Bc4 {[%emt 0:01:11]} Bxd4 {[%emt 0:00:22]} 49. Rc2 {[%emt 0:03:13]} Kg7 {[%emt 0:01:41]} 50. Bxf7 {[%emt 0:01:21]} Kxf7 {[%emt 0:00:04]} 51. Rc4 {[%emt 0:03:08]} Bb6 {[%emt 0:04:29]} 52. c7 {[%emt 0:00:49]} Rc8 {[%emt 0:00:38]} 53. Rc6 {[%emt 0:00:10]} Bxc7 {[%emt 0:02:20]} 54. b5 {[%emt 0:02:38]} e2 {[%emt 0:00:48]} 55. Kh1 {[%emt 0:04:42]} Ke7 {[%emt 0:02:56]} 56. Rc2 {[%emt 0:09:32]} Kd7 {[%emt 0:02:17]} 57. Rxe2 {[%emt 0:00:04]} Bd6 {[%emt 0:00:13]} 58. b6 {[%emt 0:01:26]} Rb8 {[%emt 0:00:40]} 59. Rh2 {[%emt 0:05:46]} Rh8 {[%emt 0:01:05]} 60. b7 {[%emt 0:01:22]} Ne3 {[%emt 0:00:12]} 61. Bc3 {[%emt 0:00:57]} Rf8 {[%emt 0:00:39]} 62. Rxh6 {[%emt 0:02:13]} Bxg3 {[%emt 0:00:06]} 63. Bf6 {[%emt 0:01:09]} Nf5 {[%emt 0:01:15]} 64. Rh8 {[%emt 0:01:09]} Rxf6 {[%emt 0:00:33]} 65. b8=Q {[%emt 0:00:05]} Bxb8 {[%emt 0:00:04]} 66. Rxb8 {[%emt 0:00:07]} Rg6 {[%emt 0:00:20]} 67. Kh2 {[%emt 0:00:24]} Ke6 {[%emt 0:00:06]} 68. Rb6+ {[%emt 0:00:43]} Nd6 {[%emt 0:00:02]} 69. Ra6 {[%emt 0:00:18]} Ke5 {[%emt 0:00:09]} 70. Ra5+ {[%emt 0:01:11]} Kf4 {[%emt 0:00:58]} 71. Ra6 {[%emt 0:00:08]} Re6 {[%emt 0:00:04]} 72. Kg2 {[%emt 0:00:33]} Re2+ {[%emt 0:00:03]} 73. Kf1 {[%emt 0:00:10]} Rd2 {[%emt 0:00:02]} 74. Ke1 {[%emt 0:00:13]} Rd5 {[%emt 0:01:38]} 75. Ra8 {[%emt 0:02:15]} Ne4 {[%emt 0:00:25]} 76. Rf8+ {[%emt 0:00:29]} Ke3 {[%emt 0:00:09]} 77. Re8 {[%emt 0:00:04]} Rd7 {[%emt 0:00:37]} 78. Kf1 {[%emt 0:00:18]} Rd1+ {[%emt 0:01:31]} 79. Kg2 {[%emt 0:00:02]} Re1 {[%emt 0:00:29]} 80. Re7 {[%emt 0:00:26]} Re2+ {[%emt 0:00:31]} 81. Kh3 {[%emt 0:00:15]} Rf2 {[%emt 0:00:30]} 82. Re8 {[%emt 0:00:31]} Rf6 {[%emt 0:00:41]} 83. Kg4 {[%emt 0:00:39]} Rg6+ {[%emt 0:00:14]} 84. Kf5 {[%emt 0:00:31]} Rg5+ {[%emt 0:00:06]} 85. Ke6 {[%emt 0:00:03]} Nc5+ {[%emt 0:00:27]} 86. Kf6+ {[%emt 0:00:12]} Kf4 {[%emt 0:00:06]} 87. Re1 {[%emt 0:01:02]} Rf5+ {[%emt 0:00:18]} 88. Kg6 {[%emt 0:00:14]} Rd5 {[%emt 0:01:09]} 89. Rf1+ {[%emt 0:00:12]} Ke4 {[%emt 0:00:02]} 90. Re1+ {[%emt 0:00:06]} Kd4 {[%emt 0:00:02]} 91. Rd1+ {[%emt 0:00:22]} Nd3 {[%emt 0:00:03]} 92. Kf6 {[%emt 0:00:27]} Ke4 {[%emt 0:00:04]} 93. Ra1 {[%emt 0:01:00]} Rd6+ {[%emt 0:00:25]} 94. Ke7 {[%emt 0:00:13]} Rb6 {[%emt 0:00:23]} 95. Ra4+ {[%emt 0:00:25]} Nb4 {[%emt 0:00:22]} 96. Ra1 {[%emt 0:00:20]} Nd3 {[%emt 0:00:28]} 97. Ra4+ {[%emt 0:01:00]} Kd5 {[%emt 0:00:06]} 98. Ra5+ {[%emt 0:01:13]} Nc5 {[%emt 0:00:05]} 99. Ra1 {[%emt 0:00:25]} Rb7+ {[%emt 0:01:18]} 100. Kf6 {[%emt 0:00:09]} Ne4+ {[%emt 0:00:24]} 101. Kg6 {[%emt 0:00:06]} Rb2 {[%emt 0:00:32]} 102. Ra5+ {[%emt 0:00:37]} Ke6 {[%emt 0:00:08]} 103. Ra6+ {[%emt 0:00:12]} Nd6 {[%emt 0:00:07]} 104. Kg5 {[%emt 0:00:08]} Rb4 {[%emt 0:00:16]} 105. Rc6 {[%emt 0:00:31]} Rd4 {[%emt 0:00:24]} 106. Ra6 {[%emt 0:00:12]} 1/2-1/2

[Event "EIWCC 2017"]
[Site "Riga"]
[Date "2017.04.17"]
[Round "7"]
[White "Ozturk, Kubra"]
[Black "Semenova, Elena"]
[Result "1/2-1/2"]
[ECO "E46"]
[WhiteElo "2261"]
[BlackElo "2212"]
[Annotator "ChessBase"]
[PlyCount "120"]
[EventDate "2017.??.??"]
[EventType "swiss"]
[EventCountry "LAT"]
[SourceTitle "playchess.com"]
[Source "ChessBase"]
[SourceQuality "1"]
[TimeControl "40/5400+30:1800+30"]

1. d4 {[%emt 0:00:00]} Nf6 {[%emt 0:00:17]} 2. c4 {[%emt 0:00:00]} e6 {[%emt 0:00:18]} 3. Nc3 {[%emt 0:00:07]} Bb4 {[%emt 0:00:22]} 4. e3 {[%emt 0:00:13]} O-O {[%emt 0:00:24]} 5. Nge2 {[%emt 0:00:09]} c6 {[%emt 0:00:16]} 6. a3 {[%emt 0:00:59]} Ba5 {[%emt 0:00:15]} 7. Ng3 {[%emt 0:04:15]} d5 {[%emt 0:00:31]} 8. Bd3 {[%emt 0:00:19]} dxc4 {[%emt 0:02:06]} 9. Bxc4 {[%emt 0:00:07]} c5 {[%emt 0:00:29]} 10. O-O {[%emt 0:07:31]} cxd4 {[%emt 0:05:17]} 11. exd4 {[%emt 0:04:00]} Nc6 {[%emt 0:00:26]} 12. b4 {[%emt 0:09:59]} Bb6 {[%emt 0:04:25]} 13. d5 {[%emt 0:00:36]} Bd4 {[%emt 0:31:56]} 14. dxc6 {[%emt 0:04:04]} Bxc3 {[%emt 0:00:04]} 15. cxb7 {[%emt 0:22:31]} Bxb7 {[%emt 0:00:18]} 16. Qxd8 {[%emt 0:07:12]} Rfxd8 {[%emt 0:00:06]} 17. Rb1 {[%emt 0:00:22]} Rac8 {[%emt 0:03:55]} 18. Be2 {[%emt 0:00:45]} Ne4 {[%emt 0:05:28]} 19. Bf3 {[%emt 0:03:50]} Nxg3 {[%emt 0:00:52]} 20. hxg3 {[%emt 0:00:19]} Bxf3 {[%emt 0:00:37]} 21. gxf3 {[%emt 0:00:04]} Bd4 {[%emt 0:01:53]} 22. Rb3 {[%emt 0:04:57]} Rc2 {[%emt 0:02:43]} 23. Be3 {[%emt 0:01:08]} Bxe3 {[%emt 0:05:14]} 24. Rxe3 {[%emt 0:00:06]} g6 {[%emt 0:08:41]} 25. f4 {[%emt 0:02:09]} Rd5 {[%emt 0:02:58]} 26. Rfe1 {[%emt 0:00:30]} h5 {[%emt 0:10:32]} 27. Rb1 {[%emt 0:07:14]} Rdd2 {[%emt 0:00:59]} 28. Rf3 {[%emt 0:00:13]} Kg7 {[%emt 0:00:52]} 29. Re1 {[%emt 0:00:50]} Rd5 {[%emt 0:05:27]} 30. Kg2 {[%emt 0:01:05]} Rb2 {[%emt 0:01:06]} 31. Rc3 {[%emt 0:03:43]} Ra2 {[%emt 0:02:11]} 32. Ree3 {[%emt 0:02:53]} Rdd2 {[%emt 0:01:25]} 33. Rf3 {[%emt 0:00:02]} Rd6 {[%emt 0:00:35]} 34. Rc7 {[%emt 0:00:51]} a6 {[%emt 0:01:26]} 35. Ra7 {[%emt 0:01:23]} Kf8 {[%emt 0:00:58]} 36. Rc3 {[%emt 0:00:37]} Rdd2 {[%emt 0:00:17]} 37. Rf3 {[%emt 0:00:52]} Rdb2 {[%emt 0:01:25]} 38. Rxa6 {[%emt 0:00:19]} Rxb4 {[%emt 0:00:13]} 39. axb4 {[%emt 0:05:18]} Rxa6 {[%emt 0:00:03]} 40. b5 {[%emt 0:00:00]} Rb6 {[%emt 0:00:13]} 41. Rb3 {[%emt 0:00:46]} Ke7 {[%emt 0:00:32]} 42. Kf3 {[%emt 0:02:39]} Kd6 {[%emt 0:01:31]} 43. Ke4 {[%emt 0:00:26]} f6 {[%emt 0:03:00]} 44. Kd4 {[%emt 0:00:35]} Rb8 {[%emt 0:04:07]} 45. Kc4 {[%emt 0:04:03]} Ra8 {[%emt 0:03:23]} 46. Kb4 {[%emt 0:01:20]} Ra2 {[%emt 0:03:01]} 47. Rd3+ {[%emt 0:00:31]} Kc7 {[%emt 0:00:17]} 48. Rc3+ {[%emt 0:01:41]} Kb7 {[%emt 0:00:57]} 49. Rf3 {[%emt 0:09:47]} Rc2 {[%emt 0:00:45]} 50. Re3 {[%emt 0:00:43]} Rxf2 {[%emt 0:00:40]} 51. Rxe6 {[%emt 0:00:23]} h4 {[%emt 0:01:31]} 52. gxh4 {[%emt 0:00:31]} Rxf4+ {[%emt 0:00:56]} 53. Kc5 {[%emt 0:00:03]} Rxh4 {[%emt 0:01:25]} 54. Rb6+ {[%emt 0:01:44]} Kc7 {[%emt 0:00:08]} 55. Rxf6 {[%emt 0:00:10]} Rh5+ {[%emt 0:00:08]} 56. Kb4 {[%emt 0:01:23]} Rh7 {[%emt 0:00:17]} 57. Rxg6 {[%emt 0:00:36]} Kb7 {[%emt 0:00:04]} 58. Ka5 {[%emt 0:00:24]} Rf7 {[%emt 0:00:04]} 59. Rg5 {[%emt 0:01:13]} Re7 {[%emt 0:00:04]} 60. b6 {[%emt 0:00:16]} Rh7 {[%emt 0:00:06]} 1/2-1/2

[Event "EIWCC 2017"]
[Site "Riga"]
[Date "2017.04.17"]
[Round "7"]
[White "Narva, Mai"]
[Black "Parhomenko, Margarita"]
[Result "1-0"]
[ECO "C02"]
[WhiteElo "2249"]
[BlackElo "1987"]
[Annotator "NA"]
[PlyCount "77"]
[EventDate "2017.??.??"]
[EventType "swiss"]
[EventCountry "LAT"]
[SourceTitle "playchess.com"]
[Source "ChessBase"]
[SourceQuality "1"]
[TimeControl "40/5400+30:1800+30"]

1. e4 {[%emt 0:00:00]} e6 {[%emt 0:00:04]} 2. d4 {[%emt 0:00:00]} d5 {[%emt 0:00:04]} 3. e5 {[%emt 0:00:00]} c5 {[%emt 0:00:07]} 4. c3 {[%emt 0:00:00]} Nc6 {[%emt 0:00:11]} 5. Nf3 {[%emt 0:00:03]} Qb6 {[%emt 0:00:22]} 6. a3 {[%emt 0:00:17]} c4 {[%emt 0:00:27]} 7. Nbd2 {[%emt 0:00:18]} Na5 {[%emt 0:00:26]} 8. g3 {[%emt 0:00:21]} Bd7 {[%emt 0:00:56]} 9. Bg2 {[%emt 0:00:33]} O-O-O {[%emt 0:12:44]} 10. O-O {[%emt 0:00:32] C02: French: Advance Variation} f5 {[%emt 0:00:14]} 11. exf6 {[%emt 0:01:03]} gxf6 {[%emt 0:00:15]} 12. Re1 {[%emt 0:01:44]} Bd6 {[%emt 0:04:30]} 13. Nf1 $146 {[%emt 0:02:16]} (13. Bh3 Bc7 14. Rb1 Kb8 15. b4 cxb3 16. Nxb3 Ne7 17. Nfd2 Qc6 {1-0 (36) Grischuk,A (2771)-Vitiugov,N (2709) Moscow 2010}) 13... Ne7 {[%emt 0:07:08]} 14. Bh3 {[%emt 0:07:37]} Bc7 {[%emt 0:11:40]} 15. Qe2 {[%emt 0:01:17]} Nf5 {[%emt 0:02:43]} 16. Bxf5 {[%emt 0:03:58]} exf5 {[%emt 0:00:07]} 17. Ne3 {[%emt 0:01:08]} Qe6 {[%emt 0:11:05]} 18. Ng2 {[%emt 0:08:30]} Qf7 {[%emt 0:04:14]} 19. Bf4 {[%emt 0:02:07]} Rde8 {[%emt 0:06:48]} 20. Qc2 {[%emt 0:01:27]} Nb3 {[%emt 0:02:00]} 21. Rad1 {[%emt 0:00:43]} Re4 {[%emt 0:08:54]} 22. Bxc7 {[%emt 0:01:59]} Kxc7 {[%emt 0:00:44]} 23. Nd2 {[%emt 0:03:33]} Nxd2 {[%emt 0:06:05]} 24. Qxd2 {[%emt 0:00:21]} Ba4 {[%emt 0:01:55]} 25. f3 {[%emt 0:04:48]} Ree8 {[%emt 0:05:02]} 26. Qf4+ {[%emt 0:03:13]} Kc6 {[%emt 0:02:20]} 27. Rc1 {[%emt 0:01:32]} Rxe1+ $18 {[%emt 0:06:21]} 28. Rxe1 {[%emt 0:00:12]} Qd7 {[%emt 0:03:46]} 29. Ne3 {[%emt 0:02:12]} Re8 {[%emt 0:00:13]} 30. Kf2 {[%emt 0:00:31]} Qe6 {[%emt 0:01:59]} 31. Ng2 {[%emt 0:07:59]} Qd7 {[%emt 0:00:53]} 32. Rxe8 {[%emt 0:00:15]} Qxe8 {[%emt 0:00:13]} 33. Qxf5 {[%emt 0:03:46]} Qf7 {[%emt 0:00:25]} 34. Nf4 {[%emt 0:01:24]} Bd1 {[%emt 0:01:52]} 35. Qc8+ {[%emt 0:00:58]} Kb6 {[%emt 0:00:39]} 36. Qc5+ {[%emt 0:00:21]} Ka6 {[%emt 0:00:04]} 37. Nxd5 {[%emt 0:00:21]} b5 {[%emt 0:00:55]} 38. Qc6+ {[%emt 0:02:22]} Ka5 {[%emt 0:00:10]} 39. Nc7 {[%emt 0:00:22]} 1-0

[Event "EIWCC 2017"]
[Site "Riga"]
[Date "2017.04.17"]
[Round "7"]
[White "Drljevic, Ljilja"]
[Black "Makka, Ioulia"]
[Result "1-0"]
[ECO "A00"]
[WhiteElo "2237"]
[BlackElo "2069"]
[Annotator "NA"]
[PlyCount "62"]
[EventDate "2017.??.??"]
[EventType "swiss"]
[EventCountry "LAT"]
[SourceTitle "playchess.com"]
[Source "ChessBase"]
[SourceQuality "1"]
[TimeControl "40/5400+30:1800+30"]

1. g3 {[%emt 0:00:00]} d5 {[%emt 0:01:14]} 2. Bg2 {[%emt 0:00:00]} c6 {[%emt 0:05:17]} 3. Nf3 {[%emt 0:00:07]} Bg4 {[%emt 0:01:16]} 4. O-O {[%emt 0:00:44]} Nd7 {[%emt 0:03:03]} 5. d3 {[%emt 0:01:37]} Ngf6 {[%emt 0:06:16]} 6. Qe1 {[%emt 0:02:41]} e5 {[%emt 0:13:11] LiveBook: 270 Games} 7. e4 {[%emt 0:00:33] A07: Réti Opening: New York and Capablanca Systems} (7. h3 Bxf3 8. Bxf3 e4 9. Bg2 Bc5 10. Nc3 Qe7 11. dxe4 dxe4 12. Bg5 h6 13. Bxf6 Nxf6 14. e3 O-O {½-½ (31) Kramnik,V (2801)-Anand,V (2784) Zuerich 2016}) 7... Bd6 {[%emt 0:02:44]} 8. h3 {[%emt 0:05:12]} Bh5 {[%emt 0:14:00]} 9. Nh4 {[%emt 0:03:01]} O-O {[%emt 0:16:26]} 10. Nf5 {[%emt 0:22:09]} Bc7 {[%emt 0:04:12]} 11. a4 {[%emt 0:04:55]} Re8 $146 {[%emt 0:03:07]} (11... Bg6 12. Nh4 Re8 13. Bg5 dxe4 14. dxe4 Nf8 {0-1 (47) Khotenashvili,B (2426)-Pogonina,N (2492) Khanty-Mansiysk 2016}) 12. a5 {[%emt 0:10:41]} Nf8 {[%emt 0:03:57]} 13. b4 {[%emt 0:09:23]} dxe4 {[%emt 0:05:26]} 14. dxe4 {[%emt 0:00:30]} b6 {[%emt 0:00:36]} 15. a6 {[%emt 0:04:35]} (15. axb6 $14 axb6 16. Rxa8 Qxa8 17. Bg5) 15... Ne6 {[%emt 0:01:47]} 16. Na3 {[%emt 0:03:21]} Qd7 {[%emt 0:07:32]} 17. Bb2 {[%emt 0:04:14]} Rad8 {[%emt 0:00:28]} 18. Nc4 {[%emt 0:04:00]} Nf8 {[%emt 0:02:24]} 19. f4 {[%emt 0:12:48]} exf4 {[%emt 0:00:45]} 20. Nxg7 $11 {[%emt 0:00:24]} (20. gxf4 $16 {Black must now prevent Nxg7!} Qe6 21. Nce3 (21. Qg3 Bg6 22. Nxg7 Kxg7 $11)) 20... Kxg7 {[%emt 0:01:03]} 21. g4 {[%emt 0:00:20]} b5 {[%emt 0:05:23]} 22. Qh4 {[%emt 0:02:43]} Qe6 {[%emt 0:00:18]} 23. g5 {[%emt 0:03:16]} bxc4 {[%emt 0:00:58]} 24. Bxf6+ {[%emt 0:00:29]} Kg6 {[%emt 0:00:29]} 25. e5 {[%emt 0:01:53]} Qf5 {[%emt 0:00:30]} 26. Rxf4 {[%emt 0:00:47]} Bb6+ {[%emt 0:00:25]} 27. Kh1 {[%emt 0:00:33]} Qxc2 {[%emt 0:00:35]} 28. Bxd8 {[%emt 0:00:52]} Rxe5 {[%emt 0:00:31]} 29. Rf6+ {[%emt 0:01:07]} Kg7 {[%emt 0:00:05]} 30. Qxh5 {[%emt 0:00:32]} Ng6 {[%emt 0:00:35]} 31. Raf1 {[%emt 0:00:49]} Kg8 1-0

[Event "EIWCC 2017"]
[Site "Riga"]
[Date "2017.04.17"]
[Round "7"]
[White "Toma, Katarzyna"]
[Black "Grapsa, Georgia"]
[Result "1-0"]
[ECO "B50"]
[WhiteElo "2229"]
[BlackElo "2049"]
[Annotator "NA"]
[PlyCount "93"]
[EventDate "2017.??.??"]
[EventType "swiss"]
[EventCountry "LAT"]
[SourceTitle "playchess.com"]
[Source "ChessBase"]
[SourceQuality "1"]
[TimeControl "40/5400+30:1800+30"]

1. e4 {[%emt 0:00:00]} c5 {[%emt 0:00:06]} 2. Nf3 {[%emt 0:00:00]} d6 {[%emt 0:00:04]} 3. d4 {[%emt 0:00:00]} Nf6 {[%emt 0:00:04]} 4. Bb5+ {[%emt 0:00:40]} Nbd7 {[%emt 0:00:05]} 5. O-O {[%emt 0:00:58]} cxd4 {[%emt 0:00:59]} 6. Qxd4 {[%emt 0:00:16]} e5 {[%emt 0:00:10]} 7. Qd3 {[%emt 0:01:18] B51: Sicilian: Moscow Variation (3 Bb5+) without 3...Bd7} h6 {[%emt 0:00:28]} 8. c4 {[%emt 0:00:30]} a6 {[%emt 0:00:16]} 9. Bxd7+ {[%emt 0:01:04]} Bxd7 {[%emt 0:00:18]} 10. Nc3 {[%emt 0:00:27]} Rc8 {[%emt 0:04:27]} 11. a4 {[%emt 0:07:02]} Be7 {[%emt 0:08:02]} 12. Be3 {[%emt 0:04:21]} O-O {[%emt 0:08:16]} 13. a5 {[%emt 0:01:23]} Be6 {[%emt 0:02:45]} 14. b3 {[%emt 0:13:30]} Qc7 {[%emt 0:07:55]} 15. Nd2 $146 {[%emt 0:03:44]} (15. h3 Qb8 16. Nh4 Rfe8 17. Rfd1 Bf8 18. Nf5 Kh7 {½-½ (45) Mastrovasilis,D (2595)-Indjic,A (2549) Kragujevac 2013}) 15... Nd7 {[%emt 0:01:15]} 16. Rfd1 {[%emt 0:07:09]} Nc5 {[%emt 0:06:05]} 17. Qb1 {[%emt 0:12:13]} f5 {[%emt 0:06:16]} 18. exf5 {[%emt 0:00:08]} Bxf5 {[%emt 0:00:04]} 19. Qa2 {[%emt 0:00:11]} Be6 {[%emt 0:06:10]} 20. Bxc5 {[%emt 0:05:59]} dxc5 {[%emt 0:07:45]} 21. Nde4 {[%emt 0:00:08]} Qc6 {[%emt 0:04:09]} 22. Nd5 {[%emt 0:02:19]} Bh4 {[%emt 0:06:28]} 23. Qe2 {[%emt 0:01:48]} Rcd8 {[%emt 0:07:06]} 24. Qh5 {[%emt 0:06:26]} Bxd5 {[%emt 0:01:43]} 25. Qxh4 {[%emt 0:00:57]} Bxe4 {[%emt 0:07:14]} 26. Rxd8 {[%emt 0:00:07]} Bxg2 {[%emt 0:00:09]} 27. Rxf8+ {[%emt 0:01:10]} Kxf8 {[%emt 0:00:04]} 28. Re1 {[%emt 0:02:15]} Bf3 {[%emt 0:02:07]} 29. h3 {[%emt 0:07:28]} e4 {[%emt 0:02:08]} 30. Qf4+ {[%emt 0:00:30]} Kg8 {[%emt 0:00:18]} 31. Kh2 {[%emt 0:00:09]} Qd7 {[%emt 0:02:18]} 32. Rg1 {[%emt 0:02:04]} Qd4 {[%emt 0:00:14]} 33. Qg3 {[%emt 0:04:26]} g5 {[%emt 0:00:59]} 34. h4 {[%emt 0:04:14]} g4 {[%emt 0:01:25]} 35. Qb8+ {[%emt 0:02:05]} Kg7 {[%emt 0:00:24]} 36. Qg3 {[%emt 0:02:21]} Kf6 {[%emt 0:02:56]} 37. Qf4+ {[%emt 0:01:08]} Kg6 {[%emt 0:01:43]} 38. Kg3 {[%emt 0:00:10]} Kg7 {[%emt 0:02:53]} 39. h5 {[%emt 0:02:40]} Qc3 {[%emt 0:01:55]} 40. Qc7+ {[%emt 0:00:00]} Kh8 {[%emt 0:02:08]} 41. Qb8+ {[%emt 0:01:05]} Kg7 {[%emt 0:05:02]} 42. Qxb7+ {[%emt 0:00:20]} Kf6 {[%emt 0:02:51]} 43. Qxa6+ {[%emt 0:02:59]} Ke5 {[%emt 0:00:46]} 44. Qxh6 {[%emt 0:00:23]} Qxb3 $18 {[%emt 0:01:10]} 45. Qe3 {[%emt 0:00:56]} Qxc4 {[%emt 0:04:45]} 46. Rc1 {[%emt 0:00:15]} Qd3 {[%emt 0:00:07]} 47. Qxc5+ {[%emt 0:00:31]} 1-0

[Event "EIWCC 2017"]
[Site "Riga"]
[Date "2017.04.17"]
[Round "7"]
[White "Gevorgyan, Maria"]
[Black "Beydullayeva, Govhar"]
[Result "1-0"]
[ECO "B24"]
[WhiteElo "2227"]
[BlackElo "2054"]
[Annotator "ChessBase"]
[PlyCount "131"]
[EventDate "2017.??.??"]
[EventType "swiss"]
[EventCountry "LAT"]
[SourceTitle "playchess.com"]
[Source "ChessBase"]
[SourceQuality "1"]
[TimeControl "40/5400+30:1800+30"]

1. e4 {[%emt 0:00:00]} c5 {[%emt 0:00:11]} 2. Nc3 {[%emt 0:00:00]} Nc6 {[%emt 0:00:15]} 3. Bb5 {[%emt 0:00:00]} Nd4 {[%emt 0:00:35]} 4. Bc4 {[%emt 0:00:03]} e6 {[%emt 0:01:16]} 5. Nge2 {[%emt 0:00:05]} g6 {[%emt 0:00:39]} 6. d3 {[%emt 0:04:43]} a6 {[%emt 0:02:28]} 7. Nxd4 {[%emt 0:01:47]} cxd4 {[%emt 0:00:04]} 8. Ne2 {[%emt 0:00:03]} Bg7 {[%emt 0:00:39]} 9. Bd2 {[%emt 0:05:01]} Ne7 {[%emt 0:02:35]} 10. Qc1 {[%emt 0:01:14]} O-O {[%emt 0:11:03]} 11. O-O {[%emt 0:06:07]} d5 {[%emt 0:01:07]} 12. exd5 {[%emt 0:00:05]} Nxd5 {[%emt 0:00:15]} 13. Bh6 {[%emt 0:00:16]} b5 {[%emt 0:05:32]} 14. Bb3 {[%emt 0:01:14]} e5 {[%emt 0:01:42]} 15. Bd2 {[%emt 0:07:45]} Bb7 {[%emt 0:01:44]} 16. Ng3 {[%emt 0:10:29]} Rc8 {[%emt 0:03:49]} 17. Re1 {[%emt 0:02:51]} Re8 {[%emt 0:03:07]} 18. f3 {[%emt 0:03:22]} Qb6 {[%emt 0:05:40]} 19. a4 {[%emt 0:01:30]} Ne7 {[%emt 0:07:47]} 20. a5 {[%emt 0:14:48]} Qc7 {[%emt 0:05:09]} 21. Bh6 {[%emt 0:03:13]} Bh8 {[%emt 0:09:54]} 22. Qg5 {[%emt 0:03:26]} Bd5 {[%emt 0:03:20]} 23. Ne4 {[%emt 0:08:23]} Bxb3 {[%emt 0:01:45]} 24. cxb3 {[%emt 0:00:44]} Nd5 {[%emt 0:05:37]} 25. Rec1 {[%emt 0:02:14]} Qd7 {[%emt 0:03:11]} 26. Rxc8 {[%emt 0:00:35]} Rxc8 {[%emt 0:00:23]} 27. Rc1 {[%emt 0:01:29]} Ne3 {[%emt 0:11:04]} 28. Rc5 {[%emt 0:00:06]} Rxc5 {[%emt 0:08:37]} 29. Nxc5 {[%emt 0:00:18]} Qc8 {[%emt 0:01:12]} 30. b4 {[%emt 0:00:56]} f6 {[%emt 0:00:48]} 31. Qh4 {[%emt 0:01:36]} g5 {[%emt 0:01:21]} 32. Qe4 {[%emt 0:02:27]} f5 {[%emt 0:01:27]} 33. Qb7 {[%emt 0:00:05]} Qxb7 {[%emt 0:00:05]} 34. Nxb7 {[%emt 0:00:03]} Nd5 {[%emt 0:01:08]} 35. Nc5 {[%emt 0:01:43]} Nxb4 {[%emt 0:01:18]} 36. Bxg5 {[%emt 0:00:06]} Nc6 {[%emt 0:00:46]} 37. b4 {[%emt 0:05:31]} Nxb4 {[%emt 0:00:24]} 38. Bd2 {[%emt 0:00:02]} Nd5 {[%emt 0:00:45]} 39. Nxa6 {[%emt 0:00:04]} Bf6 {[%emt 0:00:28]} 40. Nb8 {[%emt 0:00:00]} b4 {[%emt 0:00:23]} 41. a6 {[%emt 0:07:57]} b3 {[%emt 0:03:04]} 42. a7 {[%emt 0:02:03]} Nc7 {[%emt 0:08:05]} 43. Bc1 {[%emt 0:03:23]} Bg5 {[%emt 0:07:40]} 44. Bb2 {[%emt 0:00:50]} e4 {[%emt 0:06:43]} 45. Na6 {[%emt 0:02:46]} Na8 {[%emt 0:00:36]} 46. Nc5 {[%emt 0:00:17]} exd3 {[%emt 0:02:00]} 47. Nxd3 {[%emt 0:00:03]} Be3+ {[%emt 0:00:48]} 48. Kf1 {[%emt 0:00:01]} Kf7 {[%emt 0:01:00]} 49. Ne5+ {[%emt 0:01:28]} Ke6 {[%emt 0:00:48]} 50. Nc4 {[%emt 0:00:02]} Bg5 {[%emt 0:00:53]} 51. Ke2 {[%emt 0:01:13]} Kd5 {[%emt 0:01:42]} 52. Kd3 {[%emt 0:00:03]} Bf6 {[%emt 0:01:36]} 53. Na5 {[%emt 0:00:21]} Be5 {[%emt 0:01:01]} 54. h3 {[%emt 0:02:51]} Bg3 {[%emt 0:00:40]} 55. Nxb3 {[%emt 0:00:07]} h5 {[%emt 0:00:29]} 56. Bxd4 {[%emt 0:00:11]} Bd6 {[%emt 0:00:39]} 57. Nd2 {[%emt 0:00:37]} Bc7 {[%emt 0:00:23]} 58. Bf2 {[%emt 0:01:43]} Bd6 {[%emt 0:00:35]} 59. Nc4 {[%emt 0:00:13]} Bc7 {[%emt 0:00:10]} 60. g3 {[%emt 0:01:28]} Bd8 {[%emt 0:00:53]} 61. Ne3+ {[%emt 0:00:08]} Ke6 {[%emt 0:00:18]} 62. Ng2 {[%emt 0:00:12]} Ke5 {[%emt 0:01:03]} 63. Nf4 {[%emt 0:00:17]} h4 {[%emt 0:00:11]} 64. Ng6+ {[%emt 0:00:04]} Ke6 {[%emt 0:00:23]} 65. Nxh4 {[%emt 0:00:26]} f4 {[%emt 0:00:05]} 66. g4 {[%emt 0:00:29]} 1-0